fUSD/lending_fUSD_20251201
["ID","MTS","AMOUNT","RATE_DAILY","PERIOD"]
[395324383,1764625847094,-312.032951,0.00027397,7]
[395324384,1764625847105,-312.032951,0.00027397,7]
[395324385,1764625847115,-312.032951,0.00027397,7]
[395324386,1764625847126,-151.0,0.00027397,7]
[395324387,1764625847136,-2840.14,0.000274,2]
[395324388,1764625847145,-2840.14,0.000274,2]
[395324389,1764625847155,-2840.14,0.000274,2]
[395324390,1764625847165,-6314.64,0.00027671,2]
[395324391,1764625847175,-150.0,0.00027671,2]
[395324392,1764625847185,-170.15700211,0.00027769,2]
[395324393,1764625847195,-150.0,0.00028082,2]
[395324394,1764625847204,-150.0,0.00028493,2]
[395324395,1764625847214,-1000.6191,0.00028799,2]
[395324396,1764625847223,-150.0,0.00028904,2]
[395324397,1764625847234,-363.24943434,0.00028948,2]
[395324398,1764625847244,-150.0,0.00029315,2]
[395324399,1764625847254,-643.97433868,0.00029413,5]
[395324400,1764625847263,-150.0,0.00029726,2]
[395324401,1764625847273,-6507.0,0.00029933,2]
[395324402,1764625847283,-597.72272521,0.00030136,120]
[395324403,1764625847293,-150.0,0.00030137,7]
[395324404,1764625847302,-8653.7173414,0.000303,120]
[395324405,1764625847312,-150.0,0.00030548,7]
[395324406,1764625847322,-500.0,0.00030554,2]
[395324407,1764625847331,-1000.0,0.00030554,2]
[395324408,1764625847341,-500.0,0.00030554,2]
[395324409,1764625847351,-500.0,0.00030554,2]
[395324410,1764625847363,-250.0,0.00030554,2]
[395324411,1764625847372,-250.0,0.00030554,2]
[395324412,1764625847382,-164.68603605,0.00030554,2]
[395324413,1764625847391,-1000.0,0.00030554,2]
[395324414,1764625847402,-1000.0,0.00030554,2]
[395324415,1764625847412,-750.0,0.00030554,2]
[395324416,1764625847421,-500.0,0.00030554,2]
[395324417,1764625847431,-500.0,0.00030554,2]
[395324418,1764625847441,-261.14571214,0.00030554,2]
[395324419,1764625847451,-620.0,0.00030554,2]
[395324420,1764625847461,-1000.0,0.00030554,2]
[395324421,1764625847471,-1414.5231766,0.00030554,2]
[395324422,1764625847481,-2500.0,0.00030554,2]
[395324423,1764625847491,-10000.0,0.00030554,2]
[395324424,1764625847501,-2500.0,0.00030554,2]
[395324425,1764625847510,-2000.0,0.00030554,2]
[395324426,1764625847520,-2570.67791355,0.00030554,2]
[395324427,1764625847530,-220.46738781,0.00030554,2]
[395324428,1764625847539,-500.0,0.00030554,2]
[395324429,1764625847548,-151.0,0.00030554,2]
[395324430,1764625847558,-248.71531821,0.00030554,2]
[395324431,1764625847567,-500.0,0.00030554,2]
[395324432,1764625847577,-500.0,0.00030554,2]
[395324433,1764625847586,-500.0,0.00030554,2]
[395324434,1764625847595,-500.0,0.00030554,2]
[395324435,1764625847605,-500.0,0.00030554,2]
[395324436,1764625847616,-500.0,0.00030554,2]
[395324437,1764625847626,-500.0,0.00030554,2]
[395324438,1764625847635,-500.0,0.00030554,2]
[395324439,1764625847645,-500.0,0.00030554,2]
[395324440,1764625847655,-150.0,0.00030959,7]
[395324441,1764625847665,-274.32,0.00031,7]
[395324442,1764625847675,-642.94,0.00031102,2]
[395324443,1764625847685,-1000.0,0.00031102,2]
[395324444,1764625847695,-150.0,0.0003137,7]
[395324445,1764625847704,-169.31,0.00031507,120]
[395324446,1764625847714,-1383.40953354,0.00031594,2]
[395324447,1764625847725,-1000.0,0.0003165,2]
[395324448,1764625847734,-150.0,0.00031781,7]
[395324449,1764625847744,-257.91778498,0.00031923,2]
[395324450,1764625847754,-150.0,0.00032192,7]
[395324451,1764625847763,-1000.0,0.00032198,2]
[395324452,1764625847772,-150.0,0.00032603,7]
[395324453,1764625847782,-1000.0,0.00032746,2]
[395324454,1764625847792,-830.01,0.00032876,120]
[395324455,1764625847801,-151.0,0.00032877,31]
[395324456,1764625847811,-151.0,0.00032877,31]
[395324457,1764625847820,-151.0,0.00032877,31]
[395324458,1764625847831,-170.364776,0.00032877,31]
[395324459,1764625847840,-151.173101,0.00032877,31]
[395324460,1764625847849,-151.0,0.00032877,31]
[395324461,1764625847859,-151.0,0.00032877,31]
[395324462,1764625847869,-151.0,0.00032877,31]
[395324463,1764625847879,-151.0,0.00032877,31]
[395324464,1764625847889,-151.0,0.00032877,31]
[395324465,1764625847899,-151.0,0.00032877,15]
[395324466,1764625847910,-275.042465,0.00032877,30]
[395324467,1764625847920,-151.0,0.00032877,31]
[395324468,1764625847930,-151.0,0.00032877,31]
[395324469,1764625847940,-151.0,0.00032877,31]
[395324470,1764625848088,-151.0,0.00032877,31]
[395324471,1764625848099,-151.0,0.00032877,31]
[395324472,1764625848109,-151.0,0.00032877,31]
[395324473,1764625848118,-151.0,0.00032877,31]
[395324474,1764625848130,-151.0,0.00032877,31]
[395324475,1764625848139,-151.0,0.00032877,31]
[395324476,1764625848149,-151.0,0.00032877,31]
[395324477,1764625848159,-151.0,0.00032877,31]
[395324478,1764625848168,-281.042284,0.00032877,31]
[395324479,1764625848177,-151.0,0.00032877,31]
[395324480,1764625848186,-151.0,0.00032877,31]
[395324481,1764625848196,-151.0,0.00032877,31]
[395324482,1764625848205,-151.0,0.00032877,31]
[395324483,1764625848215,-151.0,0.00032877,31]
[395324484,1764625848224,-151.0,0.00032877,31]
[395324485,1764625848234,-155.711678,0.00032877,31]
[395324486,1764625848243,-151.0,0.00032877,31]
[395324487,1764625848252,-155.711678,0.00032877,31]
[395324488,1764625848262,-155.711678,0.00032877,31]
[395324489,1764625848271,-155.711678,0.00032877,31]
[395324490,1764625848281,-236.282932,0.00032877,31]
[395324491,1764625848290,-236.282932,0.00032877,31]
[395324492,1764625848299,-236.282932,0.00032877,31]
[395324493,1764625848310,-236.282932,0.00032877,31]
[395324494,1764625848319,-273.036849,0.00032877,31]
[395324495,1764625848329,-151.0,0.00032877,31]
[395324496,1764625848339,-175.530591,0.00032877,31]
[395324497,1764625848348,-151.0,0.00032877,31]
[395324498,1764625848361,-151.0,0.00032877,31]
[395324499,1764625848371,-151.0,0.00032877,31]
[395324500,1764625848382,-151.0,0.00032877,31]
[395324501,1764625848391,-151.0,0.00032877,31]
[395324502,1764625848402,-151.0,0.00032877,31]
[395324503,1764625848412,-151.0,0.00032877,31]
[395324504,1764625848422,-151.0,0.00032877,31]
[395324505,1764625848433,-159.346991,0.00032877,31]
[395324506,1764625848445,-180.476746,0.00032877,31]
[395324507,1764625848455,-151.0,0.00032877,31]
[395324508,1764625848466,-151.0,0.00032877,31]
[395324509,1764625848475,-6507.0,0.00032933,2]
[395324510,1764625848485,-150.0,0.00033014,7]
[395324511,1764625848494,-3231.01,0.000331,2]
[395324512,1764625848503,-154.9,0.000331,14]
[395324513,1764625848513,-1465.65,0.000331,14]
[395324514,1764625848522,-500.74,0.00033165,2]
[395324515,1764625848532,-267.46074303,0.00033292,2]
[395324516,1764625848542,-1000.0,0.00033294,2]
[395324517,1764625848551,-150.0,0.00033425,7]
[395324518,1764625848560,-830.01,0.00033698,120]
[395324519,1764625848570,-150.0,0.00033836,7]
[395324520,1764625848579,-1000.0,0.00033842,2]
[395324521,1764625848589,-156.24154383,0.00033977,2]
[395324522,1764625848598,-150.0,0.00034247,7]
[395324523,1764625848608,-1000.0,0.0003439,2]
[395324524,1764625848618,-830.01,0.0003452,120]
[395324525,1764625848628,-170.15700211,0.0003458,2]
[395324526,1764625848637,-150.0,0.00034658,7]
[395324527,1764625848647,-277.35679052,0.00034661,2]
[395324528,1764625848656,-1465.65,0.000347,14]
[395324529,1764625848666,-1000.0,0.00034938,2]
[395324530,1764625848675,-161.92696395,0.00035,30]
[395324531,1764625848685,-150.0,0.00035068,7]
[395324532,1764625848694,-3231.01,0.000351,2]
[395324533,1764625848703,-154.9,0.000351,14]
[395324534,1764625848712,-830.01,0.00035342,120]
[395324535,1764625848721,-150.0,0.00035479,7]
[395324536,1764625848731,-1000.0,0.00035486,2]
[395324537,1764625848741,-150.0,0.0003589,14]
[395324538,1764625848751,-6199.0,0.00035933,2]
[395324539,1764625848760,-287.61899177,0.0003603,2]
[395324540,1764625848770,-830.01,0.00036164,120]
[395324541,1764625848779,-150.0,0.00036301,14]
[395324542,1764625848788,-1383.40953354,0.00036492,2]
[395324543,1764625848798,-150.0,0.00036712,14]
[395324544,1764625848807,-1465.65,0.000369,14]
[395324545,1764625848816,-830.01,0.00036986,120]
[395324546,1764625848825,-1000.0,0.00037,20]
[395324547,1764625848835,-1000.0,0.00037,20]
[395324548,1764625848844,-1000.0,0.00037,20]
[395324549,1764625848854,-3231.01,0.00037,2]
[395324550,1764625848863,-150.0,0.00037123,14]
[395324551,1764625848873,-425.5347,0.00037199,2]
[395324552,1764625848882,-500.0,0.00037298,2]
[395324553,1764625848891,-298.26089446,0.00037399,2]
[395324554,1764625848900,-150.0,0.00037534,14]
[395324555,1764625848909,-830.01,0.00037808,120]
[395324556,1764625848919,-301.23536035,0.00037827,30]
[395324557,1764625848929,-382.09035425,0.00037827,30]
[395324558,1764625848938,-314.24530833,0.00037827,30]
[395324559,1764625848948,-301.23536036,0.00037827,30]
[395324560,1764625848957,-310.89207324,0.00037827,30]
[395324561,1764625848967,-559.69687256,0.00037827,30]
[395324562,1764625848976,-300.0,0.00037827,30]
[395324563,1764625848986,-365.53090477,0.00037827,30]
[395324564,1764625848995,-300.97923547,0.00037827,30]
[395324565,1764625849005,-301.23536034,0.00037827,30]
[395324566,1764625849015,-300.97923549,0.00037827,30]
[395324567,1764625849024,-1374.648,0.00037935,50]
[395324568,1764625849034,-150.0,0.00037945,14]
[395324569,1764625849044,-300.0,0.00037999,10]
[395324570,1764625849053,-300.0,0.00037999,10]
[395324571,1764625849063,-50000.0,0.00038,38]
[395324572,1764625849073,-1465.65,0.00038,14]
[395324573,1764625849082,-3231.01,0.000381,2]
[395324574,1764625849092,-702.68,0.00038219,2]
[395324575,1764625849101,-702.68,0.00038219,2]
[395324576,1764625849111,-702.68,0.00038219,2]
[395324577,1764625849120,-702.68,0.00038219,2]
[395324578,1764625849130,-702.68,0.00038219,2]
[395324579,1764625849139,-702.68,0.00038219,2]
[395324580,1764625849150,-702.68,0.00038219,2]
[395324581,1764625849159,-700.38,0.00038219,2]
[395324582,1764625849168,-331.85706599,0.00038356,2]
[395324583,1764625849178,-151.0,0.00038356,120]
[395324584,1764625849187,-151.0,0.00038356,120]
[395324585,1764625849197,-151.0,0.00038356,120]
[395324586,1764625849206,-150.0,0.00038356,5]
[395324587,1764625849216,-305.34952532,0.00038356,2]
[395324588,1764625849225,-150.0,0.00038356,14]
[395324589,1764625849234,-400.14865871,0.00038488,30]
[395324590,1764625849243,-150.0,0.0003861,30]
[395324591,1764625849252,-830.01,0.0003863,120]
[395324592,1764625849262,-150.0,0.0003863,2]
[395324593,1764625849271,-150.0,0.0003863,2]
[395324594,1764625849281,-1214.04,0.0003863,2]
[395324595,1764625849290,-339.94,0.0003863,2]
[395324596,1764625849300,-418.03,0.0003863,2]
[395324597,1764625849309,-283.63,0.0003863,2]
[395324598,1764625849318,-177.91,0.0003863,2]
[395324599,1764625849327,-230.87,0.0003863,2]
[395324600,1764625849337,-552.16,0.0003863,2]
[395324601,1764625849347,-1214.04,0.0003863,2]
[395324602,1764625849357,-177.91,0.0003863,2]
[395324603,1764625849370,-150.0,0.0003863,2]
[395324604,1764625849380,-150.0,0.0003863,2]
[395324605,1764625849390,-150.0,0.0003863,2]
[395324606,1764625849399,-150.0,0.0003863,2]
[395324607,1764625849410,-552.16,0.0003863,2]
[395324608,1764625849422,-177.91,0.0003863,2]
[395324609,1764625849433,-150.0,0.0003863,2]
[395324610,1764625849443,-150.0,0.0003863,2]
[395324611,1764625849453,-552.16,0.0003863,2]
[395324612,1764625849462,-1214.04,0.0003863,2]
[395324613,1764625849471,-150.0,0.0003863,2]
[395324614,1764625849481,-150.0,0.0003863,2]
[395324615,1764625849490,-1214.04,0.0003863,2]
[395324616,1764625849500,-397.52,0.0003863,2]
[395324617,1764625849509,-177.91,0.0003863,2]
[395324618,1764625849519,-150.0,0.0003863,2]
[395324619,1764625849528,-150.0,0.0003863,2]
[395324620,1764625849538,-1214.04,0.0003863,2]
[395324621,1764625849548,-177.91,0.0003863,2]
[395324622,1764625849558,-150.0,0.0003863,2]
[395324623,1764625849567,-1133.8,0.0003863,2]
[395324624,1764625849576,-177.91,0.0003863,2]
[395324625,1764625849586,-177.91,0.0003863,2]
[395324626,1764625849595,-177.91,0.0003863,2]
[395324627,1764625849605,-176.95,0.0003863,2]
[395324628,1764625849614,-150.0,0.00038767,14]
[395324629,1764625849624,-309.29654756,0.00038768,2]
[395324630,1764625849635,-274.32,0.000388,14]
[395324631,1764625849644,-6314.64,0.00038904,2]
[395324632,1764625849653,-300.0,0.00038999,10]
[395324633,1764625849664,-500.0,0.00038999,2]
[395324634,1764625849673,-50000.0,0.00039,39]
[395324635,1764625849683,-50000.0,0.00039,29]
[395324636,1764625849692,-50000.0,0.00039,49]
[395324637,1764625849701,-1885.517077,0.00039,120]
[395324638,1764625849711,-150.0,0.00039178,14]
[395324639,1764625849721,-152.0,0.00039415,3]
[395324640,1764625849730,-830.01,0.00039452,120]
[395324641,1764625849740,-1103.84,0.00039452,2]
[395324642,1764625849749,-1213.49,0.00039452,2]
[395324643,1764625849759,-150.0,0.00039452,2]
[395324644,1764625849768,-150.0,0.00039589,14]
[395324645,1764625849778,-300.020422,0.00039627,96]
[395324646,1764625849787,-500.74,0.00039654,2]
[395324647,1764625849796,-250.0,0.00039726,5]
[395324648,1764625849805,-714.0,0.0003977,20]
[395324649,1764625849815,-153.24509763,0.000399,120]
[395324650,1764625849824,-153.24509751,0.000399,120]
[395324651,1764625849833,-153.24509751,0.000399,120]
[395324652,1764625849843,-153.24509751,0.000399,120]
[395324653,1764625849853,-153.24509751,0.000399,120]
[395324654,1764625849862,-153.24509751,0.000399,120]
[395324655,1764625849872,-153.24509751,0.000399,120]
[395324656,1764625849881,-153.24509751,0.000399,120]
[395324657,1764625849891,-153.24509751,0.000399,120]
[395324658,1764625849900,-153.24509751,0.000399,120]
[395324659,1764625849910,-153.24509751,0.000399,120]
[395324660,1764625849919,-153.24509751,0.000399,120]
[395324661,1764625849928,-153.24509751,0.000399,120]
[395324662,1764625849937,-153.24509751,0.000399,120]
[395324663,1764625849947,-153.24509751,0.000399,120]
[395324664,1764625849956,-153.24509751,0.000399,120]
[395324665,1764625849965,-153.24509751,0.000399,120]
[395324666,1764625849974,-153.24509751,0.000399,120]
[395324667,1764625849984,-153.24509751,0.000399,120]
[395324668,1764625849993,-153.24509751,0.000399,120]
[395324669,1764625850002,-300.0,0.00039999,10]
[395324670,1764625850011,-50000.0,0.0004,50]
[395324671,1764625850020,-50000.0,0.0004,40]
[395324672,1764625850030,-50000.0,0.0004,30]
[395324673,1764625850039,-34264.41475771,0.0004,20]
[395324674,1764625851751,-1651.38396414,0.000274,2]
[395324675,1764625851771,-872.73,0.000274,2]
[395324676,1764625851782,-316.02603586,0.000274,2]
[395324677,1764625851791,-2618.47396416,0.0004,20]
[395324678,1764625851802,-469.09003,0.0004,20]
[395324679,1764625851828,-2840.14,0.000274,2]
[395324680,1764625851836,-10866.86938325,0.0004,20]
[395324681,1764625851867,-3636.82447298,0.00029413,2]
[395324682,1764625851876,-1781.15186488,0.0004,20]
[395324683,1764625851885,-207.07063672,0.0004,2]
[395324684,1764625851894,-904.43996591,0.0004,120]
[395324685,1764625851903,-17560.0652538,0.0004,120]
[395324686,1764625851912,-16796.22118528,0.0004,8]
[395324687,1764625851921,-253.717535,0.0004,120]
[395324688,1764625851930,-151.0,0.0004,14]
[395324689,1764625851939,-151.0,0.0004,120]
[395324690,1764625851949,-151.0,0.0004,120]
[395324691,1764625851958,-151.0,0.0004,120]
[395324692,1764625851967,-151.0,0.0004,120]
[395324693,1764625851976,-152.784547,0.0004,120]
[395324694,1764625851985,-151.0,0.0004,120]
[395324695,1764625851994,-151.0,0.0004,120]
[395324696,1764625852003,-151.0,0.0004,120]
[395324697,1764625852012,-151.0,0.0004,120]
[395324698,1764625852022,-151.0,0.0004,120]
[395324699,1764625852031,-151.0,0.0004,120]
[395324700,1764625852040,-151.0,0.0004,120]
[395324701,1764625852050,-151.0,0.0004,120]
[395324702,1764625852059,-151.0,0.0004,120]
[395324703,1764625852068,-151.0,0.0004,120]
[395324704,1764625852077,-151.0,0.0004,120]
[395324705,1764625852086,-198.979555,0.0004,120]
[395324706,1764625852096,-151.0,0.0004,120]
[395324707,1764625852105,-151.0,0.0004,120]
[395324708,1764625852114,-151.0,0.0004,120]
[395324709,1764625852124,-151.0,0.0004,120]
[395324710,1764625852133,-151.0,0.0004,120]
[395324711,1764625852142,-209.392691,0.0004,120]
[395324712,1764625852151,-259.513472,0.0004,120]
[395324713,1764625852161,-151.0,0.0004,120]
[395324714,1764625852170,-151.0,0.0004,120]
[395324715,1764625852179,-151.0,0.0004,120]
[395324716,1764625852189,-151.0,0.0004,120]
[395324717,1764625852198,-155.711678,0.0004,120]
[395324718,1764625852207,-151.0,0.0004,120]
[395324719,1764625852216,-155.711678,0.0004,120]
[395324720,1764625852225,-75.45451652,0.0004,120]
[395324721,1764625852261,-182.42815085,0.000169,2]
[395324722,1764625852271,-80.25716148,0.0004,120]
[395324723,1764625852280,-155.711678,0.0004,120]
[395324724,1764625852290,-312.032951,0.0004,120]
[395324725,1764625852299,-312.032951,0.0004,120]
[395324726,1764625852309,-312.032951,0.0004,120]
[395324727,1764625852318,-312.032951,0.0004,120]
[395324728,1764625852328,-236.282932,0.0004,120]
[395324729,1764625852338,-236.282932,0.0004,120]
[395324730,1764625852348,-236.282932,0.0004,120]
[395324731,1764625852359,-236.282932,0.0004,120]
[395324732,1764625852376,-151.0,0.0004,120]
[395324733,1764625852386,-151.0,0.0004,120]
[395324734,1764625852395,-151.0,0.0004,120]
[395324735,1764625852407,-151.0,0.0004,120]
[395324736,1764625852416,-197.543862,0.0004,120]
[395324737,1764625852426,-151.0,0.0004,120]
[395324738,1764625852436,-151.0,0.0004,120]
[395324739,1764625852446,-151.0,0.0004,120]
[395324740,1764625852456,-171.488333,0.0004,30]
[395324741,1764625852465,-171.488333,0.0004,30]
[395324742,1764625852474,-171.488333,0.0004,30]
[395324743,1764625852483,-171.488333,0.0004,30]
[395324744,1764625852492,-289.447635,0.0004,120]
[395324745,1764625852501,-150.0,0.0004,14]
[395324746,1764625852511,-320.74051982,0.00040137,2]
[395324747,1764625852521,-803.12589602,0.0004018,14]
[395324748,1764625852533,-396.87410398,0.0004018,14]
[395324749,1764625852542,-714.0,0.0004018,20]
[395324750,1764625852551,-274.32,0.000402,14]
[395324751,1764625852561,-918.96076777,0.00040254,7]
[395324752,1764625852570,-830.01,0.00040273,120]
[395324753,1764625852580,-150.0,0.00040411,14]
[395324754,1764625852590,-1000.0,0.00040454,14]
[395324755,1764625852599,-500.0,0.00040454,14]
[395324756,1764625852609,-714.0,0.0004059,20]
[395324757,1764625852619,-1444.0,0.00040658,120]
[395324758,1764625852629,-1465.65,0.000407,14]
[395324759,1764625852638,-3231.01,0.000408,30]
[395324760,1764625852648,-150.0,0.00040822,14]
[395324761,1764625852658,-248.91,0.00040976,7]
[395324762,1764625852669,-363.24943434,0.00040996,120]
[395324763,1764625852679,-15616.31314417,0.00041,51]
[395324765,1764626231235,-344.60541665,0.000138,2]
[395324766,1764626231265,-151.0,0.00013897,2]
[395324767,1764626231294,-195.0,0.00013898,2]
[395324768,1764626231335,-180.0,0.00013898,2]
[395324769,1764626231383,-1200.0,0.00013898,2]
[395324770,1764626231413,-476.09999072,0.00013899,2]
[395324771,1764626231446,-500.0,0.00013899,2]
[395324772,1764626231479,-500.0,0.00013899,2]
[395324773,1764626231516,-500.0,0.00013899,2]
[395324774,1764626231549,-363.82937468,0.00013899,2]
[395324775,1764626231579,-150.0,0.00013899,2]
[395324776,1764626232168,-1000.0,0.000139,2]
[395324777,1764626232439,-1778.53501925,0.000139,2]
[395324778,1764626232507,-10000.01,0.000139,2]
[395324779,1764626232649,-10000.01,0.000139,2]
[395324780,1764626232846,-10000.01,0.000139,2]
[395324781,1764626233447,-10000.01,0.000139,2]
[395324782,1764626233471,-10000.01,0.000139,2]
[395324783,1764626233485,-10000.01,0.000139,2]
[395324784,1764626482141,1626.34,7.664e-05,2]
[395324785,1764626482391,1626.34,8.067e-05,2]
[395324786,1764626482670,1626.34,8.471e-05,2]
[395324787,1764626483019,1626.34,8.874e-05,2]
[395324788,1764626483248,1626.34,9.277e-05,2]
[395324789,1764626483487,1626.34,9.681e-05,2]
[395324790,1764626483943,241.97,0.00010084,2]
[395324791,1764626483970,1384.37,0.00010084,2]
[395324792,1764626486126,1626.34,0.00010488,2]
[395324793,1764626486192,1626.34,0.00010891,2]
[395324794,1764626486237,1626.34,0.00011294,2]
[395324795,1764626486279,1626.34,0.00011698,2]
[395324796,1764626488531,-500.02091879,0.00012101,2]
[395324797,1764626491302,-324.26006258,0.00012101,2]
[395324798,1764626493915,-577.35943626,0.00012101,2]
[395324799,1764626498393,-178.50051505,0.00012101,2]
[395324820,1764627031703,-46.19906732,0.00012101,2]
[395324821,1764627031713,-1626.34,0.00012504,2]
[395324822,1764627031722,-178.50051505,0.00012808,2]
[395324823,1764627031731,-1626.34,0.00012908,2]
[395324824,1764627031741,-973.12061779,0.00013311,2]
[395324825,1764627031774,-653.21938221,0.00013311,2]
[395324826,1764627031784,-83.83405165,0.00013382,2]
[395324827,1764627031795,-1416.16594835,0.00013382,2]
[395324828,1764627031809,-166.66,0.00013699,2]
[395324829,1764627031819,-1200.0,0.00013714,2]
[395324830,1764627031829,-1626.34,0.00013715,2]
[395324831,1764627031839,-1058.48361234,0.00013773,2]
[395324832,1764627031849,-2032.52547806,0.00013773,2]
[395324833,1764627031858,-151.0,0.00013797,2]
[395324834,1764627031867,-300.0,0.00013798,2]
[395324835,1764627031878,-150.0,0.00013799,2]
[395324836,1764627031887,-5713.82496125,0.000138,2]
[395324837,1764627031899,-7067.68687086,0.000138,2]
[395324838,1764627031910,-711.63073972,0.000138,2]
[395324839,1764627031921,-1499.73759379,0.000138,2]
[395324840,1764627031935,-20232.36940842,0.000138,2]
[395324841,1764627031947,-660.1,0.000138,2]
[395324842,1764627031978,-34669.91656119,0.000138,2]
[395324843,1764627031989,-78501.85632667,0.000138,2]
[395324844,1764627032000,-210519.04852339,0.000138,2]
[395324846,1764627032012,-820.7253007,0.000138,2]
[395324855,1764627037700,-500.0,0.00013799,2]
[395324856,1764627037710,-285.65057091,0.00013799,2]
[395324857,1764627037720,-161.64899307,0.00013799,2]
[395324858,1764627037730,-344.80531961,0.00013799,2]
[395324859,1764627037740,-500.0,0.00013799,2]
[395324860,1764627037749,-585.4288906,0.00013799,2]
[395324861,1764627037759,-345.93263663,0.00013799,2]
[395324862,1764627037768,-500.0,0.00013799,2]
[395324863,1764627037777,-500.0,0.00013799,2]
[395324864,1764627037787,-408.68179357,0.00013799,2]
[395324865,1764627037796,-283.05648638,0.00013799,2]
[395324866,1764627037809,-500.0,0.00013799,2]
[395324867,1764627037819,-325.2354545,0.00013799,2]
[395324868,1764627037828,-500.0,0.00013799,2]
[395324869,1764627037838,-500.0,0.00013799,2]
[395324870,1764627037847,-500.0,0.00013799,2]
[395324871,1764627037857,-500.0,0.00013799,2]
[395324872,1764627037866,-500.0,0.00013799,2]
[395324873,1764627037876,-500.0,0.00013799,2]
[395324874,1764627037886,-500.0,0.00013799,2]
[395324875,1764627037896,-500.0,0.00013799,2]
[395324876,1764627037905,-500.0,0.00013799,2]
[395324877,1764627037915,-500.0,0.00013799,2]
[395324884,1764627038330,-500.0,0.00013799,2]
[395324885,1764627038347,-500.0,0.00013799,2]
[395324886,1764627038357,-500.0,0.00013799,2]
[395324887,1764627038367,-500.0,0.00013799,2]
[395324888,1764627038377,-500.0,0.00013799,2]
[395324889,1764627038390,-257.85921244,0.00013799,2]
[395324890,1764627038402,-242.14078756,0.00013799,2]
[395324891,1764627038413,-500.0,0.00013799,2]
[395324892,1764627038423,-500.0,0.00013799,2]
[395324893,1764627038432,-500.0,0.00013799,2]
[395324894,1764627038442,-500.0,0.00013799,2]
[395324895,1764627038451,-56.13362756,0.00013799,2]
[395324896,1764627038463,-443.86637244,0.00013799,2]
[395324897,1764627038472,-500.0,0.00013799,2]
[395324898,1764627038482,-500.0,0.00013799,2]
[395324899,1764627038491,-500.0,0.00013799,2]
[395324900,1764627038501,-500.0,0.00013799,2]
[395324901,1764627038510,-500.0,0.00013799,2]
[395324902,1764627038519,-500.0,0.00013799,2]
[395324903,1764627038528,-500.0,0.00013799,2]
[395324904,1764627038537,-500.0,0.00013799,2]
[395324905,1764627038547,-500.0,0.00013799,2]
[395324906,1764627038557,-422.73300433,0.00013799,2]
[395324907,1764627038566,-500.0,0.00013799,2]
[395324908,1764627038575,-37419.90062323,0.000138,2]
[395324909,1764627038586,-2231.55103585,0.000138,2]
[395324910,1764627038598,-359951.65205493,0.000138,2]
[395324911,1764627038607,-166.66,0.00013873,2]
[395324912,1764627038616,-151.0,0.00013892,2]
[395324913,1764627038626,-151.0,0.00013892,2]
[395324914,1764627038635,-151.0,0.00013892,2]
[395324915,1764627038644,-151.0,0.00013892,2]
[395324916,1764627038654,-151.0,0.00013892,2]
[395324917,1764627038664,-151.0,0.00013892,2]
[395324918,1764627038674,-158.27356486,0.00013892,2]